lending/lending_fUSD_20241214
["ID","MTS","AMOUNT","RATE_DAILY","PERIOD"]
[345312634,1734148251315,-517.96,0.00021198,3]
[345312635,1734148251325,-500.0,0.00021198,3]
[345312636,1734148251334,-500.0,0.00021198,3]
[345312637,1734148251345,-500.0,0.00021198,3]
[345312638,1734148251354,-500.0,0.00021198,3]
[345312639,1734148251363,-500.0,0.00021198,3]
[345312640,1734148251373,-729.89,0.00021198,3]
[345312641,1734148251382,-500.0,0.00021198,3]
[345312642,1734148251392,-639.34,0.00021198,3]
[345312643,1734148251402,-526.04,0.00021198,3]
[345312644,1734148251411,-500.0,0.00021198,3]
[345312645,1734148251420,-579.64,0.00021198,3]
[345312646,1734148251430,-682.9,0.00021198,3]
[345312647,1734148251442,-500.0,0.00021198,3]
[345312648,1734148251452,-500.0,0.00021198,3]
[345312649,1734148251462,-1091.89,0.00021198,3]
[345312650,1734148251472,-500.0,0.00021198,3]
[345312651,1734148251482,-500.0,0.00021198,3]
[345312652,1734148251492,-758.3,0.00021198,3]
[345312653,1734148251501,-500.0,0.00021198,3]
[345312654,1734148251512,-500.0,0.00021198,3]
[345312655,1734148251522,-500.0,0.00021198,3]
[345312656,1734148251532,-500.0,0.00021198,3]
[345312657,1734148251543,-500.0,0.00021198,3]
[345312658,1734148251552,-500.0,0.00021198,3]
[345312659,1734148251562,-500.0,0.00021198,3]
[345312660,1734148251572,-1313.98,0.00021198,3]
[345312661,1734148251581,-500.0,0.00021198,3]
[345312662,1734148251591,-500.0,0.00021198,3]
[345312663,1734148251608,-500.0,0.00021198,3]
[345312664,1734148251617,-500.0,0.00021198,3]
[345312665,1734148251626,-500.0,0.00021198,3]
[345312666,1734148251636,-500.0,0.00021198,3]
[345312667,1734148251645,-229.82357151,0.00021198,3]
[345312668,1734148251654,-500.0,0.00021198,3]
[345312669,1734148251664,-500.0,0.00021198,3]
[345312670,1734148251673,-500.0,0.00021198,3]
[345312671,1734148251683,-500.0,0.00021198,3]
[345312672,1734148251692,-500.0,0.00021198,3]
[345312673,1734148251702,-500.0,0.00021198,3]
[345312674,1734148251711,-291.8260479,0.00021198,3]
[345312675,1734148251720,-857.21,0.00021198,3]
[345312676,1734148251730,-682.52,0.00021198,3]
[345312677,1734148251740,-500.0,0.00021198,3]
[345312678,1734148251749,-500.0,0.00021198,3]
[345312679,1734148251759,-834.41,0.00021198,3]
[345312680,1734148251768,-500.0,0.00021198,3]
[345312681,1734148251777,-500.0,0.00021198,3]
[345312682,1734148251787,-500.0,0.00021198,3]
[345312683,1734148251796,-1494.16,0.00021198,3]
[345312684,1734148251805,-500.0,0.00021198,3]
[345312685,1734148251814,-807.76,0.00021198,3]
[345312686,1734148251824,-1332.04,0.00021198,3]
[345312687,1734148251833,-500.0,0.00021198,3]
[345312688,1734148251844,-500.0,0.00021198,3]
[345312689,1734148251853,-500.0,0.00021198,3]
[345312690,1734148251863,-500.0,0.00021198,3]
[345312691,1734148251872,-500.0,0.00021198,3]
[345312692,1734148251881,-612.90779466,0.00021198,3]
[345312693,1734148251891,-918.02,0.00021198,3]
[345312694,1734148251900,-500.0,0.00021198,3]
[345312695,1734148251909,-500.0,0.00021198,3]
[345312696,1734148251919,-623.31,0.00021198,3]
[345312697,1734148251928,-500.0,0.00021198,3]
[345312698,1734148251937,-925.13,0.00021198,3]
[345312699,1734148251946,-500.0,0.00021198,3]
[345312700,1734148251955,-500.0,0.00021198,3]
[345312701,1734148251964,-500.0,0.00021198,3]
[345312702,1734148251974,-500.0,0.00021198,3]
[345312703,1734148251984,-500.0,0.00021198,3]
[345312704,1734148251993,-500.0,0.00021198,3]
[345312705,1734148252002,-1447.72,0.00021198,3]
[345312706,1734148252012,-805.1,0.00021198,3]
[345312707,1734148252022,-500.0,0.00021198,3]
[345312708,1734148252032,-500.0,0.00021198,3]
[345312709,1734148252042,-500.0,0.00021198,3]
[345312710,1734148252052,-500.0,0.00021198,3]
[345312711,1734148252061,-1234.82,0.00021198,3]
[345312712,1734148252070,-1234.82,0.00021198,3]
[345312713,1734148252080,-500.0,0.00021198,3]
[345312714,1734148252089,-3250.34,0.00021198,3]
[345312715,1734148252101,-500.0,0.00021198,3]
[345312716,1734148252111,-500.0,0.00021198,3]
[345312717,1734148252119,-927.93,0.00021198,3]
[345312718,1734148252129,-564.25655297,0.00021198,3]
[345312719,1734148252138,-500.0,0.00021198,3]
[345312720,1734148252152,-500.0,0.00021198,3]
[345312721,1734148252162,-1260.7,0.00021198,3]
[345312722,1734148252171,-2004.492113,0.00021198,3]
[345312723,1734148252182,-3138.953135,0.00021198,3]
[345312724,1734148252191,-500.0,0.00021198,3]
[345312725,1734148252200,-983.12,0.00021198,3]
[345312726,1734148252210,-500.0,0.00021198,3]
[345312727,1734148252219,-1220.74,0.00021198,3]
[345312728,1734148252234,-1794.1,0.00021198,3]
[345312729,1734148252244,-500.0,0.00021198,3]
[345312730,1734148252253,-500.0,0.00021198,3]
[345312731,1734148252263,-500.0,0.00021198,3]
[345312732,1734148252272,-500.0,0.00021198,3]
[345312733,1734148252282,-1779.66,0.00021198,3]
[345312734,1734148252292,-500.0,0.00021198,3]
[345312735,1734148252301,-500.0,0.00021198,3]
[345312736,1734148252312,-1914.86,0.00021198,3]
[345312737,1734148252322,-1914.86,0.00021198,3]
[345312738,1734148252331,-1215.42,0.00021198,3]
[345312739,1734148252340,-500.0,0.00021198,3]
[345312740,1734148252353,-584.36,0.00021198,3]
[345312741,1734148252362,-500.0,0.00021198,3]
[345312742,1734148252371,-500.0,0.00021198,3]
[345312743,1734148252381,-500.0,0.00021198,3]
[345312744,1734148252390,-500.0,0.00021198,3]
[345312745,1734148252399,-513.13,0.00021198,3]
[345312746,1734148252409,-500.0,0.00021198,3]
[345312747,1734148252418,-500.0,0.00021198,3]
[345312748,1734148252427,-500.0,0.00021198,3]
[345312749,1734148252437,-613.77,0.00021198,3]
[345312750,1734148252447,-613.77,0.00021198,3]
[345312751,1734148252456,-2130.49,0.00021198,3]
[345312752,1734148252465,-500.0,0.00021198,3]
[345312753,1734148252475,-292.1653358,0.00021198,3]
[345312754,1734148252483,-500.0,0.00021198,3]
[345312755,1734148252492,-500.0,0.00021198,3]
[345312756,1734148252502,-500.0,0.00021198,3]
[345312757,1734148252511,-868.61,0.00021198,3]
[345312758,1734148252520,-868.61,0.00021198,3]
[345312759,1734148252529,-500.0,0.00021198,3]
[345312760,1734148252538,-500.0,0.00021198,3]
[345312761,1734148252547,-500.0,0.00021198,3]
[345312762,1734148252555,-255.65602744,0.00021198,3]
[345312763,1734148252564,-580.35,0.00021198,3]
[345312764,1734148252573,-500.0,0.00021198,3]
[345312765,1734148252582,-500.0,0.00021198,3]
[345312766,1734148252591,-500.0,0.00021198,3]
[345312767,1734148252603,-204.9956873,0.00021198,3]
[345312768,1734148252612,-500.0,0.00021198,3]
[345312769,1734148252621,-500.0,0.00021198,3]
[345312770,1734148252631,-564.03,0.00021198,3]
[345312771,1734148252640,-500.0,0.00021198,3]
[345312772,1734148252648,-1482.19,0.00021198,3]
[345312773,1734148252658,-1482.19,0.00021198,3]
[345312774,1734148252774,-500.0,0.00021198,3]
[345312775,1734148252784,-500.0,0.00021198,3]
[345312776,1734148252793,-500.0,0.00021198,3]
[345312777,1734148252802,-1534.38,0.00021198,3]
[345312778,1734148252812,-500.0,0.00021198,3]
[345312779,1734148252821,-2474.67,0.00021198,3]
[345312780,1734148252830,-1283.33,0.00021198,3]
[345312781,1734148252840,-1421.7,0.00021198,3]
[345312782,1734148252852,-500.0,0.00021198,3]
[345312783,1734148252862,-500.0,0.00021198,3]
[345312784,1734148252871,-1609.72,0.00021198,3]
[345312785,1734148252881,-500.0,0.00021198,3]
[345312786,1734148252891,-500.0,0.00021198,3]
[345312787,1734148252901,-500.0,0.00021198,3]
[345312788,1734148252910,-1824.73,0.00021198,3]
[345312789,1734148252920,-912.87,0.00021198,3]
[345312790,1734148252929,-8334.97,0.00021198,3]
[345312791,1734148252939,-699.88,0.00021198,3]
[345312792,1734148252948,-968.11,0.00021198,3]
[345312793,1734148252957,-500.0,0.00021198,3]
[345312794,1734148252967,-968.11,0.00021198,3]
[345312795,1734148252976,-500.0,0.00021198,3]
[345312796,1734148252986,-797.68,0.00021198,3]
[345312797,1734148252995,-500.0,0.00021198,3]
[345312798,1734148253004,-518.58,0.00021198,3]
[345312799,1734148253013,-500.0,0.00021198,3]
[345312800,1734148253022,-805.48,0.00021198,3]
[345312801,1734148253031,-500.0,0.00021198,3]
[345312802,1734148253040,-500.0,0.00021198,3]
[345312803,1734148253049,-1570.78,0.00021198,3]
[345312804,1734148253058,-744.77,0.00021198,3]
[345312805,1734148253068,-2123.76,0.00021198,3]
[345312806,1734148253077,-1526.56,0.00021198,3]
[345312807,1734148253086,-2123.76,0.00021198,3]
[345312808,1734148253096,-1003.15,0.00021198,3]
[345312809,1734148253105,-586.39,0.00021198,3]
[345312810,1734148253115,-500.0,0.00021198,3]
[345312811,1734148253124,-1177.36,0.00021198,3]
[345312812,1734148253133,-500.0,0.00021198,3]
[345312813,1734148253142,-500.0,0.00021198,3]
[345312814,1734148253151,-1537.43,0.00021198,3]
[345312815,1734148253161,-500.0,0.00021198,3]
[345312816,1734148253170,-1537.43,0.00021198,3]
[345312817,1734148253179,-500.0,0.00021198,3]
[345312818,1734148253188,-500.0,0.00021198,3]
[345312819,1734148253198,-537.91206688,0.00021198,3]
[345312820,1734148253207,-500.0,0.00021198,3]
[345312821,1734148253218,-500.0,0.00021198,3]
[345312822,1734148253229,-904.24,0.00021198,3]
[345312823,1734148253239,-3033.11,0.00021198,3]
[345312824,1734148253249,-904.24,0.00021198,3]
[345312825,1734148253258,-4820.48,0.00021198,3]
[345312826,1734148253267,-679.58,0.00021198,3]
[345312827,1734148253278,-698.24,0.00021198,3]
[345312828,1734148253287,-698.96,0.00021198,3]
[345312829,1734148253296,-1169.1,0.00021198,3]
[345312830,1734148253306,-500.0,0.00021198,3]
[345312831,1734148253316,-500.0,0.00021198,3]
[345312832,1734148253325,-500.0,0.00021198,3]
[345312833,1734148253334,-500.0,0.00021198,3]
[345312834,1734148253345,-1228.93,0.00021198,3]
[345312835,1734148253356,-1228.93,0.00021198,3]
[345312836,1734148253366,-500.0,0.00021198,3]
[345312837,1734148253377,-500.0,0.00021198,3]
[345312838,1734148253386,-876.35,0.00021198,3]
[345312839,1734148253395,-500.0,0.00021198,3]
[345312840,1734148253404,-3269.21,0.00021198,3]
[345312841,1734148253413,-898.46,0.00021198,3]
[345312842,1734148253423,-500.0,0.00021198,3]
[345312843,1734148253432,-500.0,0.00021198,3]
[345312844,1734148253441,-500.0,0.00021198,3]
[345312845,1734148253450,-500.0,0.00021198,3]
[345312846,1734148253460,-500.0,0.00021198,3]
[345312847,1734148253470,-2716.62,0.00021198,3]
[345312848,1734148253479,-2217.52,0.00021198,3]
[345312849,1734148253488,-500.0,0.00021198,3]
[345312850,1734148253498,-507.89,0.00021198,3]
[345312851,1734148253507,-2217.52,0.00021198,3]
[345312852,1734148253517,-6024.13,0.00021198,3]
[345312853,1734148253526,-6024.13,0.00021198,3]
[345312854,1734148253535,-500.0,0.00021198,3]
[345312855,1734148253544,-500.0,0.00021198,3]
[345312856,1734148253553,-983.68,0.00021198,3]
[345312857,1734148253562,-610.47,0.00021198,3]
[345312858,1734148253572,-834.45,0.00021198,3]
[345312859,1734148253581,-733.29,0.00021198,3]
[345312860,1734148253591,-934.24,0.00021198,3]
[345312861,1734148253602,-934.24,0.00021198,3]
[345312862,1734148253612,-800.51,0.00021198,3]
[345312863,1734148253622,-800.51,0.00021198,3]
[345312864,1734148253631,-849.5,0.00021198,3]
[345312865,1734148253640,-849.5,0.00021198,3]
[345312866,1734148253649,-518.86,0.00021198,3]
[345312867,1734148253658,-661.6,0.00021198,3]
[345312868,1734148253668,-661.6,0.00021198,3]
[345312869,1734148253677,-1000.0,0.00021198,3]
[345312870,1734148253686,-500.0,0.00021198,3]
[345312871,1734148253695,-572.26,0.00021198,3]
[345312872,1734148253704,-500.0,0.00021198,3]
[345312873,1734148253714,-500.0,0.00021198,3]
[345312874,1734148253723,-500.0,0.00021198,3]
[345312875,1734148253733,-500.0,0.00021198,3]
[345312876,1734148253743,-500.0,0.00021198,3]
[345312877,1734148253753,-626.68,0.00021198,3]
[345312878,1734148253764,-626.68,0.00021198,3]
[345312879,1734148253773,-581.21,0.00021198,3]
[345312880,1734148253782,-523.42,0.00021198,3]
[345312881,1734148253792,-444.6384253,0.00021198,3]
[345312882,1734148253802,-1099.36,0.00021198,3]
[345312883,1734148253811,-1099.36,0.00021198,3]
[345312884,1734148253820,-500.0,0.00021198,3]
[345312885,1734148253829,-500.0,0.00021198,3]
[345312886,1734148253839,-500.0,0.00021198,3]
[345312887,1734148253854,-500.0,0.00021198,3]
[345312888,1734148253863,-1237.0,0.00021198,3]
[345312889,1734148253873,-1237.0,0.00021198,3]
[345312890,1734148253882,-500.0,0.00021198,3]
[345312891,1734148253892,-991.24,0.00021198,3]
[345312892,1734148253901,-991.24,0.00021198,3]
[345312893,1734148253911,-3441.94,0.00021198,3]
[345312894,1734148253920,-500.0,0.00021198,3]
[345312895,1734148253929,-500.0,0.00021198,3]
[345312896,1734148253939,-500.0,0.00021198,3]
[345312897,1734148253948,-347.06674543,0.00021198,3]
[345312898,1734148253957,-500.0,0.00021198,3]
[345312899,1734148253966,-8606.71,0.00021198,3]
[345312900,1734148253976,-500.0,0.00021198,3]
[345312901,1734148253985,-500.0,0.00021198,3]
[345312902,1734148253994,-500.0,0.00021198,3]
[345312903,1734148254003,-500.0,0.00021198,3]
[345312904,1734148254013,-2854.35,0.00021198,3]
[345312905,1734148254022,-542.65,0.00021198,3]
[345312906,1734148254031,-749.86,0.00021198,3]
[345312907,1734148254040,-533.94,0.00021198,3]
[345312908,1734148254050,-702.38,0.00021198,3]
[345312909,1734148254059,-500.0,0.00021198,3]
[345312910,1734148254069,-500.0,0.00021198,3]
[345312911,1734148254078,-983.34,0.00021198,3]
[345312912,1734148254088,-500.0,0.00021198,3]
[345312913,1734148254100,-500.0,0.00021198,3]
[345312914,1734148254110,-500.0,0.00021198,3]
[345312915,1734148254119,-500.0,0.00021198,3]
[345312916,1734148254129,-500.0,0.00021198,3]
[345312917,1734148254138,-500.0,0.00021198,3]
[345312918,1734148254147,-2510.62,0.00021198,3]
[345312919,1734148254157,-351.69514907,0.00021198,3]
[345312920,1734148254167,-2025.2,0.00021198,3]
[345312921,1734148254176,-631.52,0.00021198,3]
[345312922,1734148254185,-631.52,0.00021198,3]
[345312923,1734148254195,-1162.26,0.00021198,3]
[345312924,1734148254204,-1542.95,0.00021198,3]
[345312925,1734148254213,-1162.26,0.00021198,3]
[345312926,1734148254223,-500.0,0.00021198,3]
[345312927,1734148254233,-500.0,0.00021198,3]
[345312928,1734148254243,-500.0,0.00021198,3]
[345312929,1734148254252,-500.0,0.00021198,3]
[345312930,1734148254262,-1822.61,0.00021198,3]
[345312931,1734148254271,-718.03,0.00021198,3]
[345312932,1734148254280,-500.0,0.00021198,3]
[345312933,1734148254289,-500.0,0.00021198,3]
[345312934,1734148254299,-500.0,0.00021198,3]
[345312935,1734148254310,-500.0,0.00021198,3]
[345312936,1734148254320,-500.0,0.00021198,3]
[345312937,1734148254329,-500.0,0.00021198,3]
[345312938,1734148254338,-500.0,0.00021198,3]
[345312939,1734148254352,-594.04,0.00021198,3]
[345312940,1734148254361,-1118.3,0.00021198,3]
[345312941,1734148254371,-500.0,0.00021198,3]
[345312942,1734148254380,-500.0,0.00021198,3]
[345312943,1734148254389,-500.0,0.00021198,3]
[345312944,1734148254398,-1070.14,0.00021198,3]
[345312945,1734148254408,-1070.14,0.00021198,3]
[345312946,1734148254417,-1809.76,0.00021198,3]
[345312947,1734148254517,-500.0,0.00021198,3]
[345312948,1734148254537,-1351.53,0.00021198,3]
[345312949,1734148254547,-500.0,0.00021198,3]
[345312950,1734148254556,-500.0,0.00021198,3]
[345312951,1734148254566,-603.28,0.00021199,3]
[345312952,1734148254575,-500.0,0.00021199,3]
[345312953,1734148254584,-500.0,0.00021199,3]
[345312954,1734148254597,-548.54301491,0.00021199,3]
[345312955,1734148254606,-604.4,0.00021199,3]
[345312956,1734148254616,-1070.01,0.00021199,3]
[345312957,1734148254625,-500.0,0.00021199,3]
[345312958,1734148254635,-500.0,0.00021199,3]
[345312959,1734148254644,-500.0,0.00021199,3]
[345312960,1734148254654,-634.28,0.00021199,3]
[345312961,1734148254663,-500.0,0.00021199,3]
[345312962,1734148254673,-500.0,0.00021199,3]
[345312963,1734148254682,-500.0,0.00021199,3]
[345312964,1734148254692,-500.0,0.00021199,3]
[345312965,1734148254701,-500.0,0.00021199,3]
[345312966,1734148254710,-500.0,0.00021199,3]
[345312967,1734148254721,-500.0,0.00021199,3]
[345312968,1734148254730,-500.0,0.00021199,3]
[345312969,1734148254739,-500.0,0.00021199,3]
[345312970,1734148254748,-500.0,0.00021199,3]
[345312971,1734148254757,-500.0,0.00021199,3]
[345312972,1734148254767,-500.0,0.00021199,3]
[345312973,1734148254776,-500.0,0.00021199,3]
[345312974,1734148254785,-500.0,0.00021199,3]
[345312975,1734148254795,-500.0,0.00021199,3]
[345312976,1734148254804,-500.0,0.00021199,3]
[345312977,1734148254814,-500.0,0.00021199,3]
[345312978,1734148254823,-500.0,0.00021199,3]
[345312979,1734148254832,-223.4995777,0.00021199,3]
[345312980,1734148254841,-500.0,0.00021199,3]
[345312981,1734148254853,-500.0,0.00021199,3]
[345312982,1734148254862,-500.0,0.00021199,3]
[345312983,1734148254871,-500.0,0.00021199,3]
[345312984,1734148254881,-954.86,0.00021199,3]
[345312985,1734148254890,-500.0,0.00021199,3]
[345312986,1734148254899,-500.0,0.00021199,3]
[345312987,1734148254908,-500.0,0.00021199,3]
[345312988,1734148254917,-500.0,0.00021199,3]
[345312989,1734148254927,-500.0,0.00021199,3]
[345312990,1734148254936,-500.0,0.00021199,3]
[345312991,1734148254945,-972.94,0.00021199,3]
[345312992,1734148254955,-500.0,0.00021199,3]
[345312993,1734148254964,-500.0,0.00021199,3]
[345312994,1734148254973,-500.0,0.00021199,3]
[345312995,1734148254983,-500.0,0.00021199,3]
[345312996,1734148254992,-500.0,0.00021199,3]
[345312997,1734148255001,-500.0,0.00021199,3]
[345312998,1734148255010,-500.0,0.00021199,3]
[345312999,1734148255020,-500.0,0.00021199,3]
[345313000,1734148255030,-500.0,0.00021199,3]
[345313001,1734148255040,-1081.24,0.00021199,3]
[345313002,1734148255050,-531.18096566,0.00021199,3]
[345313003,1734148255059,-500.0,0.00021199,3]
[345313004,1734148255068,-500.0,0.00021199,3]
[345313005,1734148255077,-500.0,0.00021199,3]
[345313006,1734148255086,-500.0,0.00021199,3]
[345313007,1734148255097,-500.0,0.00021199,3]
[345313008,1734148255106,-500.0,0.00021199,3]
[345313009,1734148255115,-500.0,0.00021199,3]
[345313010,1734148255124,-500.0,0.00021199,3]
[345313011,1734148255134,-500.0,0.00021199,3]
[345313012,1734148255144,-500.0,0.00021199,3]
[345313013,1734148255154,-618.73788985,0.00021199,3]
[345313014,1734148255165,-500.0,0.00021199,3]
[345313015,1734148255176,-500.0,0.00021199,3]
[345313016,1734148255186,-500.0,0.00021199,3]
[345313017,1734148255197,-500.0,0.00021199,3]
[345313018,1734148255207,-500.0,0.00021199,3]
[345313019,1734148255216,-500.0,0.00021199,3]
[345313020,1734148255226,-500.0,0.00021199,3]
[345313021,1734148255239,-500.0,0.00021199,3]
[345313022,1734148255248,-500.0,0.00021199,3]
[345313023,1734148255258,-500.0,0.00021199,3]
[345313024,1734148255267,-500.0,0.00021199,3]
[345313025,1734148255278,-500.0,0.00021199,3]
[345313026,1734148255287,-500.0,0.00021199,3]
[345313027,1734148255296,-500.0,0.00021199,3]
[345313028,1734148255307,-500.0,0.00021199,3]
[345313029,1734148255318,-500.0,0.00021199,3]
[345313030,1734148255327,-500.0,0.00021199,3]
[345313031,1734148255337,-500.0,0.00021199,3]
[345313032,1734148255348,-500.0,0.00021199,3]
[345313033,1734148255357,-500.0,0.00021199,3]
[345313034,1734148255366,-500.0,0.00021199,3]
[345313035,1734148255376,-500.0,0.00021199,3]
[345313036,1734148255386,-500.0,0.00021199,3]
[345313037,1734148255395,-500.0,0.00021199,3]
[345313038,1734148255404,-500.0,0.00021199,3]
[345313039,1734148255413,-500.0,0.00021199,3]
[345313040,1734148255422,-500.0,0.00021199,3]
[345313041,1734148255431,-502.2211342,0.00021199,3]
[345313042,1734148255440,-500.0,0.00021199,3]
[345313043,1734148255450,-500.0,0.00021199,3]
[345313044,1734148255460,-500.0,0.00021199,2]
[345313045,1734148255469,-500.0,0.00021199,3]
[345313046,1734148255478,-500.0,0.00021199,3]
[345313047,1734148255487,-788.56,0.00021199,3]
[345313048,1734148255497,-500.0,0.00021199,3]
[345313049,1734148255507,-500.0,0.00021199,3]
[345313050,1734148255517,-500.0,0.00021199,3]
[345313051,1734148255526,-500.0,0.00021199,3]
[345313052,1734148255535,-607.74,0.00021199,3]
[345313053,1734148255544,-500.0,0.00021199,3]
[345313054,1734148255553,-500.0,0.00021199,3]
[345313055,1734148255562,-500.0,0.00021199,3]
[345313056,1734148255571,-766.91,0.00021199,3]
[345313057,1734148255580,-500.0,0.00021199,3]
[345313058,1734148255589,-550.65,0.00021199,3]
[345313059,1734148255601,-500.0,0.00021199,3]
[345313060,1734148255610,-500.0,0.00021199,3]
[345313061,1734148255619,-500.0,0.00021199,3]
[345313062,1734148255629,-528.85,0.00021199,3]
[345313063,1734148255639,-500.0,0.00021199,3]
[345313064,1734148255648,-580.29,0.00021199,3]
[345313065,1734148255657,-500.0,0.00021199,3]
[345313066,1734148255666,-500.0,0.00021199,3]
[345313067,1734148255676,-500.0,0.00021199,3]
[345313068,1734148255685,-500.0,0.00021199,3]
[345313069,1734148255694,-500.0,0.00021199,3]
[345313070,1734148255703,-500.0,0.00021199,3]
[345313071,1734148255711,-500.0,0.00021199,3]
[345313072,1734148255721,-500.0,0.00021199,3]
[345313073,1734148255730,-571.06,0.00021199,3]
[345313074,1734148255739,-500.0,0.00021199,3]
[345313075,1734148255748,-500.0,0.00021199,3]
[345313076,1734148255757,-500.0,0.00021199,3]
[345313077,1734148255766,-794.67,0.00021199,3]
[345313078,1734148255776,-500.0,0.00021199,3]
[345313079,1734148255785,-500.0,0.00021199,3]
[345313080,1734148255794,-500.0,0.00021199,3]
[345313081,1734148255803,-500.0,0.00021199,3]
[345313082,1734148255812,-500.0,0.00021199,3]
[345313083,1734148255820,-500.0,0.00021199,3]
[345313084,1734148255830,-500.0,0.00021199,3]
[345313085,1734148255839,-500.0,0.00021199,3]
[345313086,1734148255850,-500.0,0.00021199,3]
[345313087,1734148255859,-538.7413884,0.00021199,3]
[345313088,1734148255868,-500.0,0.00021199,3]
[345313089,1734148255877,-500.0,0.00021199,3]
[345313090,1734148255886,-500.0,0.00021199,3]
[345313091,1734148255896,-500.0,0.00021199,3]
[345313092,1734148255905,-500.0,0.00021199,3]
[345313093,1734148255914,-500.0,0.00021199,3]
[345313094,1734148255924,-514.9,0.00021199,3]
[345313095,1734148255933,-500.0,0.00021199,3]
[345313096,1734148255943,-500.0,0.00021199,3]
[345313097,1734148255952,-500.0,0.00021199,3]
[345313098,1734148255961,-1000.0,0.00021199,2]
[345313099,1734148255971,-500.0,0.00021199,3]
[345313100,1734148255980,-500.0,0.00021199,3]
[345313101,1734148255989,-500.0,0.00021199,3]
[345313102,1734148255998,-500.0,0.00021199,3]
[345313103,1734148256008,-508.59,0.00021199,3]
[345313104,1734148256018,-500.0,0.00021199,3]
[345313105,1734148256027,-500.0,0.00021199,3]
[345313106,1734148256037,-500.0,0.00021199,3]
[345313107,1734148256142,-500.0,0.00021199,3]
[345313108,1734148256153,-651.23,0.00021199,3]
[345313109,1734148256162,-1392.78,0.00021199,3]
[345313110,1734148256171,-873.05,0.00021199,3]
[345313111,1734148256181,-564.3,0.00021199,3]
[345313112,1734148256190,-500.0,0.00021199,3]
[345313113,1734148256199,-500.0,0.00021199,3]
[345313114,1734148256208,-517.21,0.00021199,3]
[345313115,1734148256218,-805.54,0.00021199,3]
[345313116,1734148256229,-500.0,0.00021199,3]
[345313117,1734148256243,-500.0,0.00021199,3]
[345313118,1734148256252,-500.0,0.00021199,3]
[345313119,1734148256263,-500.0,0.00021199,3]
[345313120,1734148256275,-503.15763911,0.00021199,3]
[345313121,1734148256285,-533.32,0.00021199,3]
[345313122,1734148256294,-500.0,0.00021199,3]
[345313123,1734148256305,-500.0,0.00021199,3]
[345313124,1734148256316,-500.0,0.00021199,3]
[345313125,1734148256326,-2744.75,0.00021199,3]
[345313126,1734148256337,-500.0,0.00021199,3]
[345313127,1734148256348,-500.0,0.00021199,3]
[345313128,1734148256358,-867.14,0.00021199,3]
[345313129,1734148256367,-500.0,0.00021199,3]
[345313130,1734148256376,-500.0,0.00021199,3]
[345313131,1734148256386,-500.0,0.00021199,3]
[345313132,1734148256397,-500.0,0.00021199,3]
[345313133,1734148256407,-500.0,0.00021199,3]